bitfinex/quotes_ETHUSD_20240820
["timestamp","ask_amount","ask_price","bid_price","bid_amount"]
[1724172042479,3.0,2582.7,2582.4,2.4077]
[1724172042916,3.87207,2582.6,2582.5,0.55]
[1724172043119,6.87207,2582.6,2582.5,0.55]
[1724172043317,3.0,2582.6,2582.5,2.9577]
[1724172043618,3.0,2582.7,2582.5,2.9577]
[1724172043804,3.87188,2582.8,2582.5,2.9577]
[1724172043980,6.87193,2582.7,2582.5,2.9577]
[1724172044487,3.0,2582.7,2582.6,2.3831]
[1724172044691,3.0,2582.8,2582.6,2.9331]
[1724172044989,3.0,2582.8,2582.7,22.4073]
[1724172045186,3.0,2582.8,2582.7,21.8573]
[1724172045523,3.0,2582.8,2582.7,22.4073]
[1724172046084,6.87176,2582.8,2582.7,22.4073]
[1724172046591,10.74352,2582.8,2582.7,22.4073]
[1724172046926,10.74352,2582.8,2582.7,21.8573]
[1724172047422,14.61528,2582.8,2582.7,21.8573]
[1724172049100,15.01931267,2582.8,2582.7,21.8573]
[1724172050922,15.01931267,2582.8,2582.7,2.3873]
[1724172051424,7.74472,2582.4,2582.3,19.47]
[1724172051628,10.74472,2582.4,2582.3,20.02]
[1724172052027,10.74472,2582.4,2582.3,22.3469]
[1724172052228,14.61708,2582.4,2582.3,2.3269]
[1724172052631,10.74472,2582.4,2582.3,2.3269]
[1724172053136,10.88422483,2582.4,2582.3,2.3269]
[1724172054225,10.88422483,2582.4,2582.3,2.8769]
[1724172054993,3.13950483,2582.4,2582.3,2.8769]
[1724172055192,0.13950483,2582.4,2582.3,22.63459]
[1724172055577,3.8721,2582.6,2582.4,2.2529]
[1724172055930,3.8721,2582.6,2582.5,2.8086]
[1724172056089,7.7442,2582.6,2582.5,2.8086]
[1724172056500,10.7442,2582.6,2582.5,2.8086]
[1724172058385,10.7442,2582.6,2582.5,2.2586]
[1724172059943,10.7442,2582.6,2582.5,2.8086]
[1724172060349,3.0,2582.6,2582.5,5.03646]
[1724172060558,3.0,2582.7,2582.6,2.2977]
[1724172060768,3.0,2582.7,2582.6,2.8477]
[1724172060914,0.40403267,2582.8,2582.7,2.2977]
[1724172061122,0.40403267,2582.8,2582.7,2.8477]
[1724172061872,4.27579267,2582.8,2582.7,2.8477]
[1724172062090,7.27579267,2582.8,2582.7,2.8477]
[1724172062820,0.40403267,2582.8,2582.7,20.02]
[1724172063019,0.40403267,2582.8,2582.7,24.8029056]
[1724172063220,4.27579267,2582.8,2582.7,24.2529056]
[1724172063450,0.40403267,2582.8,2582.7,24.2529056]
[1724172063837,0.54359049,2582.8,2582.7,24.2529056]
[1724172064218,0.40403267,2582.8,2582.7,24.2529056]
[1724172064420,0.40403267,2582.8,2582.7,25.1914056]
[1724172065978,0.5435375,2582.8,2582.7,24.6414056]
[1724172067303,0.40403267,2582.8,2582.7,24.6414056]
[1724172067456,0.40403267,2582.8,2582.7,25.1914056]
[1724172067655,0.54363378,2582.8,2582.7,25.1914056]
[1724172069756,4.41539378,2582.8,2582.7,21.9611]
[1724172069961,8.28715378,2582.8,2582.7,21.9611]
[1724172070401,11.28715378,2582.8,2582.7,21.9611]
[1724172071069,11.28715378,2582.8,2582.7,22.5111]
[1724172072061,3.54363378,2582.8,2582.7,22.5111]
[1724172072297,3.54363378,2582.8,2582.7,24.76221]
[1724172074129,3.54363378,2582.8,2582.7,22.5111]
[1724172074279,7.27579267,2582.8,2582.7,22.5111]
[1724172074482,7.41538593,2582.8,2582.7,22.5111]
[1724172075439,11.28714593,2582.8,2582.7,22.5111]
[1724172075785,11.28714593,2582.8,2582.7,3.0411]
[1724172075999,7.41538593,2582.8,2582.7,3.0411]
[1724172076526,3.54362593,2582.8,2582.7,3.34521]
[1724172076832,0.54362593,2582.8,2582.7,3.34521]
[1724172076983,3.54362593,2582.8,2582.7,3.34521]
[1724172077179,0.54362593,2582.8,2582.7,3.34521]
[1724172078828,0.40403267,2582.8,2582.7,3.34521]
[1724172079130,0.54356995,2582.8,2582.7,3.34521]
[1724172079343,0.54356995,2582.8,2582.7,22.81521]
[1724172080528,0.40403267,2582.8,2582.7,22.81521]
[1724172080897,0.54342451,2582.8,2582.7,22.81521]
[1724172081998,0.54342451,2582.8,2582.7,23.20371]
[1724172082420,0.40403267,2582.8,2582.7,23.20371]
[1724172082627,0.54348796,2582.8,2582.7,23.20371]
[1724172084250,0.40403267,2582.8,2582.7,23.20371]
[1724172084799,0.54367247,2582.8,2582.7,23.20371]
[1724172087432,0.40403267,2582.8,2582.7,23.20371]
[1724172088736,0.54355318,2582.8,2582.7,23.20371]
[1724172092256,0.54355318,2582.8,2582.7,22.8996]
[1724172092647,4.41531318,2582.8,2582.7,22.3496]
[1724172092972,4.41531318,2582.8,2582.7,21.9611]
[1724172092973,11.28707318,2582.8,2582.7,21.9611]
[1724172093318,11.28707318,2582.8,2582.7,19.47]
[1724172094460,7.74382,2582.7,2582.6,2.2758]
[1724172094659,10.74382,2582.7,2582.6,2.2758]
[1724172094961,3.87248,2582.4,2582.3,2.2708]
[1724172095330,4.01176881,2582.4,2582.3,2.2708]
[1724172095510,4.4158578,2582.4,2582.3,2.2708]
[1724172095716,0.5433778,2582.4,2582.3,2.2708]
[1724172095917,0.5433778,2582.4,2582.3,2.6592]
[1724172096161,0.5433778,2582.4,2582.3,3.47512]
[1724172097765,0.5433778,2582.4,2582.3,3.08672]
[1724172097967,0.5433778,2582.4,2582.3,2.8208]
[1724172099547,0.5433778,2582.4,2582.3,3.2092]
[1724172099920,0.5433778,2582.4,2582.3,22.6792]
[1724172100125,0.5433778,2582.4,2582.3,2.8208]
[1724172100380,0.5433778,2582.4,2582.3,2.2708]
[1724172100526,4.4157378,2582.4,2582.3,2.2708]
[1724172101164,0.5433778,2582.4,2582.3,2.2708]
[1724172101700,4.4157378,2582.4,2582.3,2.2708]
[1724172101979,8.2880978,2582.4,2582.3,2.2708]
[1724172102123,11.2880978,2582.4,2582.3,0.55]
[1724172102559,3.87264,2582.3,2582.2,0.55]
[1724172102854,6.87264,2582.3,2582.2,0.55]
[1724172103036,7.01177315,2582.3,2582.2,0.55]
[1724172106084,10.88441315,2582.3,2582.2,0.55]
[1724172106584,7.01177315,2582.3,2581.8,2.3582]
[1724172106792,3.87311,2581.9,2581.8,2.3582]
[1724172107096,7.01213405,2581.9,2581.8,2.3582]
[1724172108144,3.13902405,2581.9,2581.8,2.3582]
[1724172108968,0.13902405,2581.9,2581.8,2.9082]
[1724172109168,3.13902405,2581.9,2581.8,2.9082]
[1724172110497,0.13902405,2581.9,2581.8,22.3782]
[1724172110789,3.13902405,2581.9,2581.8,22.3782]
[1724172110951,3.54308818,2581.9,2581.8,22.3782]
[1724172113650,0.54308818,2581.9,2581.8,25.00442]
[1724172116686,0.40406413,2581.9,2581.8,25.00442]
[1724172119261,3.0,2582.6,2582.1,2.7725]
[1724172119625,0.13927278,2582.5,2582.3,2.3841]
[1724172119772,0.13927278,2582.5,2582.4,4.58410359]
[1724172120114,0.54454769,2582.5,2582.4,5.13410359]
[1724172120403,0.13927278,2582.5,2582.4,24.20003946]
[1724172120910,3.87185,2582.8,2582.5,2.2566]
[1724172121054,3.87185,2582.8,2582.4,21.81593946]
[1724172121055,3.87191,2582.7,2582.6,2.8066]
[1724172121254,3.87191,2582.7,2582.6,2.2566]
[1724172121483,3.87191,2582.7,2582.6,2.8066]
[1724172121655,6.87191,2582.7,2582.6,2.8066]
[1724172123166,3.0,2582.7,2582.6,2.8066]
[1724172123791,3.0,2582.7,2582.6,5.21385395]
[1724172123959,4.27675288,2583.0,2582.7,2.4697]
[1724172123960,3.0,2582.9,2582.7,2.4697]
[1724172124310,4.27675288,2583.0,2582.9,2.82]
[1724172124311,0.40529288,2583.0,2582.9,2.82]
[1724172124469,3.86814,2585.3,2583.2,2.4316]
[1724172124470,3.8702,2583.9,2583.2,2.4316]
[1724172124658,3.86974,2584.2,2583.4,2.4316]
[1724172124659,3.87043,2583.7,2583.4,2.4316]
[1724172124999,3.87043,2583.7,2583.5,0.55]
[1724172125419,3.87027,2583.8,2583.5,0.55]
[1724172125977,3.87051,2583.7,2583.5,0.55]
[1724172126181,3.87056,2583.6,2583.5,0.55]
[1724172126430,7.74112,2583.6,2583.5,0.55]
[1724172126744,10.8811326,2583.6,2583.5,0.55]
[1724172127074,10.8811326,2583.6,2583.0,18.66064299]
[1724172127075,7.0105726,2583.6,2583.0,18.66064299]
[1724172127324,7.0105726,2583.6,2583.1,2.4537]
[1724172127325,3.87116,2583.2,2583.1,2.4537]
[1724172127679,7.01094679,2583.2,2583.1,2.4537]
[1724172128622,3.13978679,2583.2,2583.1,3.0037]
[1724172128974,0.13978679,2583.2,2583.1,3.0037]
[1724172129182,0.40526899,2583.3,2583.1,3.30407]
[1724172129375,0.40526899,2583.3,2583.2,3.0119]
[1724172130581,3.0,2583.9,2583.2,3.0119]
[1724172130824,0.40522518,2583.7,2583.3,2.4672]
[1724172131121,0.40522518,2583.7,2583.5,2.2608]
[1724172131324,0.40522518,2583.7,2583.5,2.54188]
[1724172131539,3.86967,2584.2,2583.6,2.8108]
[1724172131880,0.40521687,2584.0,2583.6,2.8108]
[1724172132822,0.40521687,2584.0,2583.8,2.3717]
[1724172133030,0.40521687,2584.0,2583.6,0.55]
[1724172133031,4.32933802,2584.6,2583.9,0.9384]
[1724172133199,0.46026802,2584.6,2584.0,2.4738]
[1724172133395,3.86887,2584.8,2584.1,3.0238]
[1724172133396,0.4052322,2584.5,2584.1,3.0238]
[1724172134112,0.4052322,2584.5,2584.2,0.07738359]
[1724172134314,0.4052322,2584.5,2584.3,2.4738]
[1724172134784,0.4052322,2584.5,2584.4,0.55]
[1724172134979,0.4052322,2584.5,2584.4,3.0008]
[1724172136116,0.4052322,2584.5,2584.4,3.30088]
[1724172136318,3.86761,2585.6,2584.4,3.30088]
[1724172136527,0.46026802,2585.3,2584.5,2.4508]
[1724172136731,0.40512646,2585.2,2584.7,2.4508]
[1724172136950,0.13588781,2585.2,2584.8,3.0008]
[1724172137102,0.40508212,2585.1,2584.8,3.0008]
[1724172137444,0.54090964,2585.1,2584.8,3.0008]
[1724172137815,0.54090964,2585.1,2585.0,2.4508]
[1724172138133,0.13582752,2585.1,2585.0,3.3892]
[1724172138307,3.86714,2585.9,2585.1,2.2562]
[1724172138509,0.40503608,2585.4,2585.3,2.2562]
[1724172138710,0.05,2585.5,2585.3,2.2562]
[1724172138901,0.05,2585.5,2585.4,0.55]
[1724172139241,0.45502579,2585.5,2585.4,0.55]
[1724172139445,0.40502579,2585.5,2585.4,0.55]
[1724172140000,3.91842,2585.1,2584.9,2.2562]
[1724172140448,3.0,2585.0,2584.9,2.2562]
[1724172141047,3.0,2585.2,2584.9,2.2562]
[1724172141846,3.0,2585.3,2584.9,2.2562]
[1724172142061,3.0,2585.3,2585.1,2.2562]
[1724172142207,3.0,2585.3,2585.2,2.8062]
[1724172142404,3.05,2585.3,2585.2,2.8062]
[1724172143122,3.18636394,2585.3,2585.2,2.8062]
[1724172143318,3.13636394,2585.3,2585.2,2.8062]
[1724172143648,0.18636394,2585.3,2585.2,2.8062]
[1724172145535,0.13380884,2585.3,2585.2,2.8062]
[1724172145734,3.05,2585.5,2585.2,2.8062]
[1724172145947,3.05,2585.5,2585.4,2.3858]
[1724172146158,3.05,2585.5,2585.4,2.9358]
[1724172146850,10.78544,2585.5,2585.4,2.9358]
[1724172147643,10.78544,2585.5,2585.4,2.3858]
[1724172148349,10.73544,2585.5,2585.4,2.3858]
[1724172148949,10.73544,2585.5,2585.4,2.9358]
[1724172149527,6.86772,2585.5,2585.4,2.9358]
[1724172150327,3.0,2585.5,2585.4,2.9358]
[1724172150512,3.86738,2585.8,2585.4,2.9358]
[1724172150712,7.73475,2585.8,2585.6,2.4536]
[1724172150913,3.0,2585.7,2585.6,2.4536]
[1724172151224,3.0,2585.7,2585.6,3.0036]
[1724172152379,3.8673,2585.8,2585.6,3.0036]
[1724172152682,3.8673,2585.8,2585.7,0.55]
[1724172153033,3.8673,2585.8,2585.6,2.4536]
[1724172153034,7.73484,2585.7,2585.6,2.4536]
[1724172153237,3.86759,2585.6,2585.0,2.2762]
[1724172153476,3.8683,2585.2,2585.0,2.2762]
[1724172153682,3.86825,2585.2,2585.0,2.2762]
[1724172153831,7.87072658,2585.1,2585.0,2.2762]
[1724172156982,7.87072658,2585.1,2585.0,2.8262]
[1724172157194,4.00240658,2585.1,2585.0,2.8262]
[1724172157674,0.13408658,2585.1,2585.0,2.8262]
[1724172158181,4.00240658,2585.1,2585.0,2.8262]
[1724172158683,7.87072658,2585.1,2585.0,2.8262]
[1724172158982,0.13408658,2585.1,2585.0,2.8262]
[1724172159137,3.0,2585.2,2585.0,2.8262]
[1724172159340,3.0,2585.2,2585.1,0.55]
[1724172159643,10.73634,2585.2,2585.1,0.55]
[1724172161865,7.73664,2585.1,2585.0,2.2762]
[1724172162092,14.60496,2585.1,2585.0,2.2762]
[1724172162300,3.86959,2584.3,2583.6,0.3884]
[1724172162584,6.86834,2585.1,2583.6,0.3884]
[1724172162585,3.87022,2583.9,2583.6,0.3884]
[1724172162956,3.86992,2584.1,2583.7,2.8426]
[1724172163351,3.86959,2584.3,2583.7,2.8426]
[1724172163556,3.0,2584.2,2583.7,2.8426]
[1724172164492,3.0,2584.2,2583.8,2.9502]
[1724172165792,3.86983,2584.1,2583.8,2.9502]
[1724172165942,3.86983,2584.1,2583.8,2.4002]
[1724172166315,3.86996,2584.0,2583.8,2.4002]
[1724172166621,10.74022,2583.9,2583.8,2.4002]
[1724172166798,3.87014,2583.9,2583.0,0.3884]
[1724172167083,3.87095,2583.4,2582.6,0.3884]
[1724172167293,3.87095,2583.4,2582.8,0.3884]
[1724172167440,6.8703,2583.8,2582.9,2.8216]
[1724172167641,7.74286,2583.1,2582.9,2.4332]
[1724172167898,3.87143,2583.1,2582.9,2.4332]
[1724172168555,10.74292,2583.0,2582.9,2.4332]
[1724172168763,7.74292,2583.0,2582.9,2.4332]
[1724172168964,3.87222,2582.5,2581.4,2.4332]
[1724172169597,3.87222,2582.5,2581.4,0.3884]
[1724172169743,3.87222,2582.5,2581.7,2.8216]
[1724172169942,3.87222,2582.5,2581.9,2.4332]
[1724172170146,3.87277,2582.2,2581.9,2.4332]
[1724172170827,3.87269,2582.2,2581.9,2.4332]
[1724172171109,3.87283,2582.1,2581.9,2.4332]
[1724172171318,3.87252,2582.3,2581.9,2.4332]
[1724172171475,3.0,2582.2,2581.9,2.67652]
[1724172172616,3.0,2582.4,2581.9,2.67652]
[1724172172798,3.87252,2582.3,2581.9,2.67652]
[1724172172996,3.13212442,2582.2,2582.0,0.55]
[1724172174606,3.87281,2582.1,2582.0,0.55]
[1724172174805,3.87296,2582.0,2581.9,2.4332]
[1724172174987,4.00512266,2582.0,2581.9,2.4332]
[1724172175317,10.87808266,2582.0,2581.9,2.4332]
[1724172175889,0.05,2581.7,2581.6,2.3]
[1724172176090,3.92341,2581.7,2581.6,2.3]
[1724172176292,7.92867232,2581.7,2581.6,2.3]
[1724172177414,4.00526232,2581.7,2581.6,2.3]
[1724172177618,7.00526232,2581.7,2581.6,2.3]
[1724172178044,7.00526232,2581.7,2581.6,2.85]
[1724172179316,7.05526232,2581.7,2581.6,2.85]
[1724172180563,3.13185232,2581.7,2581.6,2.85]
[1724172180873,0.13185232,2581.7,2581.6,3.135]
[1724172181171,0.05,2582.3,2581.6,1.2234]
[1724172181365,4.00451619,2582.2,2581.7,2.8551]
[1724172181874,0.13184619,2582.2,2581.7,3.2435]
[1724172182019,0.13184619,2582.2,2581.9,0.3884]
[1724172182219,3.872,2582.7,2581.7,0.55]
[1724172182220,3.872,2582.7,2582.1,2.3051]
[1724172182419,4.00438034,2582.6,2582.2,0.55]
[1724172182727,3.87229,2582.5,2582.2,0.55]
[1724172183142,0.1320983,2582.4,2582.2,0.55]
[1724172183368,3.1320983,2582.4,2582.2,0.55]
[1724172183861,3.1320983,2582.4,2582.3,2.3051]
[1724172184062,3.58742084,2582.4,2582.3,2.8551]
[1724172184269,3.53742084,2582.4,2582.3,2.8551]
[1724172185062,7.40978084,2582.4,2582.3,2.8551]
[1724172185420,3.53742084,2582.4,2582.3,2.8551]
[1724172185833,7.40978084,2582.4,2582.3,2.8551]
[1724172186187,7.45978084,2582.4,2582.3,2.8551]
[1724172186852,7.40978084,2582.4,2582.3,2.8551]
[1724172187685,11.28214084,2582.4,2582.3,2.8551]
[1724172188690,7.40978084,2582.4,2582.3,2.8551]
[1724172191561,3.53742084,2582.4,2582.3,2.8551]
[1724172191739,0.53742084,2582.4,2582.3,3.55831]
[1724172192366,0.40532254,2582.4,2582.3,3.55831]
[1724172192601,0.05,2582.7,2582.4,2.3344]
[1724172192883,0.05,2582.7,2582.5,3.240231]
[1724172192884,0.13200745,2582.6,2582.5,3.240231]
[1724172193052,0.13200745,2582.6,2582.5,3.628631]
[1724172194078,0.45526007,2582.8,2582.5,1.294231]
[1724172194384,0.45526007,2582.8,2582.6,2.7228]
[1724172194588,0.45526007,2582.8,2582.7,2.8844]
[1724172194897,0.40526007,2582.8,2582.7,2.8844]
[1724172196022,3.92096,2583.4,2582.7,2.8844]
[1724172196200,0.40529806,2583.2,2582.7,2.8844]
[1724172196408,0.40529806,2583.2,2582.8,2.58374]
[1724172196721,0.45529806,2583.2,2583.0,2.2953]
[1724172196875,0.45529806,2583.2,2583.1,0.55]
[1724172196876,3.45529806,2583.2,2583.1,0.55]
[1724172197272,7.32645806,2583.2,2583.1,0.55]
[1724172197471,11.19761806,2583.2,2583.1,0.55]
[1724172198524,7.32645806,2583.2,2583.1,0.55]
[1724172198706,11.19761806,2583.2,2583.1,0.55]
[1724172201334,3.40529806,2583.2,2583.1,2.8615]
[1724172201545,3.40529806,2583.2,2583.1,3.14765]
[1724172201546,0.40529806,2583.2,2583.1,3.14765]
[1724172202042,0.40529806,2583.2,2583.1,3.53605]
[1724172202334,3.92028,2583.8,2583.4,2.3115]
[1724172202335,0.40532874,2583.7,2583.4,2.3115]
[1724172202492,0.40532874,2583.7,2583.6,2.3115]
[1724172202994,0.53795941,2583.7,2583.6,2.8615]
[1724172203190,3.53795941,2583.7,2583.6,2.8615]
[1724172203735,0.53795941,2583.7,2583.6,2.8615]
[1724172204936,0.53795941,2583.7,2583.6,3.32729825]
[1724172205138,0.53795941,2583.7,2583.6,3.60962883]
[1724172205631,0.13263067,2583.7,2583.6,3.60962883]
[1724172205849,0.40524667,2584.1,2583.6,3.60962883]
[1724172206005,0.13311663,2584.0,2583.8,2.3115]
[1724172206468,0.13311663,2584.0,2583.9,2.8615]
[1724172208382,4.00307663,2584.0,2583.9,2.3115]
[1724172209381,7.87303663,2584.0,2583.9,2.3115]
[1724172210234,10.87303663,2584.0,2583.9,2.3115]
[1724172210430,14.74299663,2584.0,2583.9,2.3115]
[1724172210744,3.87077,2583.5,2583.4,2.3115]
[1724172210957,3.87052,2583.7,2583.4,2.3115]
[1724172210958,3.87057,2583.6,2583.4,2.3115]
[1724172211287,0.13284556,2583.5,2583.4,2.3115]
[1724172211834,3.87014,2583.9,2583.4,2.8615]
[1724172212128,0.13301549,2583.8,2583.6,2.3115]
[1724172212377,0.13301549,2583.8,2583.7,0.55]
[1724172212575,3.0,2583.9,2583.8,2.3115]
[1724172212732,3.0,2583.9,2583.8,2.8615]
[1724172212932,7.74022,2583.9,2583.8,2.8615]
[1724172213132,10.74022,2583.9,2583.8,2.8615]
[1724172216603,7.74082,2583.7,2583.6,2.3115]
[1724172216908,3.87041,2583.7,2583.6,2.3115]
[1724172217075,3.0,2583.7,2583.6,2.3115]
[1724172217804,3.0,2583.8,2583.6,2.3115]
[1724172218002,3.0,2583.8,2583.7,0.55]
[1724172219004,7.74082,2583.7,2583.6,2.3115]
[1724172219537,7.74082,2583.7,2582.6,0.3884]
[1724172219538,3.87109,2583.3,2582.6,0.3884]
[1724172219811,3.87109,2583.3,2581.7,6.48]
[1724172219812,3.8709,2583.4,2582.8,0.3884]
[1724172219967,3.8709,2583.4,2582.9,2.4251]
[1724172220161,7.74184,2583.4,2583.1,2.4251]
[1724172220360,3.8709,2583.4,2583.1,2.4251]
[1724172220660,7.74185,2583.4,2583.1,2.4251]
[1724172220859,3.8709,2583.4,2583.1,2.4251]
[1724172221400,0.40526098,2583.5,2583.1,2.4251]
[1724172221554,0.40526098,2583.5,2583.2,2.734585]
[1724172222008,0.40526098,2583.5,2583.4,2.4251]
[1724172222188,0.40526098,2583.5,2583.4,2.9751]
[1724172223070,0.40526098,2583.5,2583.4,3.3635]
[1724172230897,0.13274383,2583.5,2583.4,3.3635]
[1724172231054,0.40528222,2583.8,2583.4,1.3056985]
[1724172231205,0.40528222,2583.8,2583.7,2.3175]
[1724172231410,0.40528222,2583.8,2583.7,2.8675]
[1724172231646,0.45528222,2583.8,2583.7,2.8675]
[1724172231925,0.40528222,2583.8,2583.7,2.8675]
[1724172233165,0.53821203,2583.8,2583.7,2.8675]
[1724172234022,8.27873203,2583.8,2583.7,2.3175]
[1724172234874,0.05,2583.7,2582.9,0.3884]
[1724172235015,7.74248,2583.2,2583.0,2.3374]
[1724172235214,0.13250735,2583.1,2583.0,2.3374]
[1724172235736,7.87512735,2583.1,2583.0,2.3374]
[1724172237051,7.87512735,2583.1,2583.0,2.8874]
[1724172237426,3.87199,2582.7,2582.6,2.4895]
[1724172237758,7.00431952,2582.7,2582.6,2.4895]
[1724172238837,10.87622952,2582.7,2582.6,2.4895]
[1724172239039,10.87622952,2582.7,2581.0,18.66064299]
[1724172239040,3.8723,2582.5,2581.8,0.3884]
[1724172239224,4.00413003,2582.4,2581.9,2.8029]
[1724172239427,4.00413003,2582.4,2582.0,0.28029]
[1724172239866,0.13175003,2582.4,2582.0,0.28029]
[1724172240157,0.13175003,2582.4,2582.1,2.4145]
[1724172240311,0.13175003,2582.4,2581.2,0.07744449]
[1724172240312,0.13175003,2582.4,2582.3,2.4145]
[1724172240513,3.0,2582.8,2582.3,2.9645]
[1724172240819,0.13203732,2582.7,2582.4,0.55]
[1724172241017,3.0,2582.8,2582.5,2.4062]
[1724172241259,0.13203732,2582.7,2582.6,0.55]
[1724172241556,3.0,2582.8,2582.6,0.55]
[1724172241862,0.13203732,2582.7,2582.6,0.55]
[1724172242069,3.0,2582.7,2582.6,0.55]
[1724172242283,3.13201384,2582.7,2582.6,0.55]
[1724172242972,7.00392384,2582.7,2582.6,0.55]
[1724172243180,4.00392384,2582.7,2582.6,0.55]
[1724172243383,7.00392384,2582.7,2582.6,0.55]
[1724172243885,3.13201384,2582.7,2582.6,0.55]
[1724172244047,3.13201384,2582.7,2582.6,3.20982]
[1724172244546,0.13201384,2582.7,2582.6,3.20982]
[1724172244743,0.13201384,2582.7,2582.6,2.9142]
[1724172244953,3.0,2582.8,2582.6,2.9142]
[1724172245146,0.13198794,2582.7,2582.6,2.9142]
[1724172245582,3.0,2582.8,2582.6,2.9142]
[1724172245782,0.13198794,2582.7,2582.6,2.9142]
[1724172246032,0.13198794,2582.7,2582.6,3.20562]
[1724172246180,3.0,2582.9,2582.7,2.4487]
[1724172246374,3.0,2582.9,2582.8,0.55]
[1724172246803,3.40532383,2582.9,2582.8,0.55]
[1724172247003,3.40532383,2582.9,2582.8,2.9953]
[1724172247211,0.40532383,2582.9,2582.8,2.9953]
[1724172248072,4.40910884,2582.9,2582.8,2.9953]
[1724172248520,7.40910884,2582.9,2582.8,2.9953]
[1724172248728,11.28071884,2582.9,2582.8,2.9953]
[1724172249226,7.40910884,2582.9,2582.8,2.9953]
[1724172249737,3.53749884,2582.9,2582.8,2.9953]
[1724172250328,0.53749884,2582.9,2582.8,3.29483]
[1724172250657,0.53749884,2582.9,2582.8,3.68323]
[1724172250993,0.13217501,2582.9,2582.8,3.68323]
[1724172253928,6.87161,2582.9,2582.8,3.0449]
[1724172255818,3.0,2582.9,2582.8,3.0449]
[1724172256003,3.0,2583.1,2582.9,2.3635]
[1724172256199,3.0,2583.1,2583.0,0.55]
[1724172256733,3.0,2583.1,2583.0,2.9604]
[1724172256937,3.0,2583.1,2583.0,2.4104]
[1724172256938,3.87131,2583.1,2583.0,2.4104]
[1724172257224,3.0,2583.1,2583.0,2.4104]
[1724172257629,4.27652681,2583.2,2583.0,2.4104]
[1724172257826,3.0,2583.1,2583.0,2.4104]
[1724172258625,3.0,2583.1,2583.0,2.9604]
[1724172258872,0.40527681,2583.2,2583.0,2.9604]
[1724172259180,0.40527681,2583.2,2583.1,2.9604]
[1724172260569,0.40527681,2583.2,2583.1,3.3488]
[1724172260741,0.40527681,2583.2,2583.1,2.9604]
[1724172261140,0.40527681,2583.2,2583.1,3.3488]
[1724172261524,0.40527681,2583.2,2583.1,2.9604]
[1724172261967,0.40527681,2583.2,2583.1,3.3488]
[1724172262130,0.40527681,2583.2,2583.1,3.68368]
[1724172262557,0.40527681,2583.2,2583.1,3.29528]
[1724172263174,0.01687779,2583.2,2583.1,3.68368]
[1724172263337,3.86961,2584.3,2583.2,2.3736]
[1724172263541,3.86931,2584.5,2583.3,0.46578887]
[1724172263874,3.87021,2583.9,2583.6,2.762]
[1724172264075,0.12223096,2583.8,2583.6,2.762]
[1724172264277,3.86987,2584.1,2583.6,2.762]
[1724172264575,0.12239595,2584.0,2583.7,2.6498]
[1724172264985,3.86969,2584.2,2583.7,2.6498]
[1724172265278,3.86998,2584.0,2583.7,2.3736]
[1724172265429,0.1222429,2583.9,2583.8,0.55]
[1724172265632,7.73978,2584.1,2583.8,0.55]
[1724172265836,0.12219725,2584.0,2583.8,0.55]
[1724172266083,3.87011,2583.9,2583.8,2.9965]
[1724172266241,3.99224692,2583.9,2583.8,2.4465]
[1724172266442,6.99224692,2583.9,2583.8,2.4465]
[1724172266638,3.12213692,2583.9,2583.8,2.4465]
[1724172266999,0.12213692,2583.9,2583.8,2.4465]
[1724172267136,3.12213692,2583.9,2583.8,2.4465]
[1724172267338,3.0,2584.0,2583.8,2.69115]
[1724172267577,0.1219999,2583.9,2583.8,2.69115]
[1724172267779,0.1219999,2583.9,2583.8,3.24115]
[1724172267939,3.0,2584.1,2583.9,2.4465]
[1724172268281,3.0,2584.1,2584.0,2.9965]
[1724172268521,3.86959,2584.3,2584.1,2.4465]
[1724172268690,6.86959,2584.3,2584.2,0.55]
[1724172269181,3.0,2584.3,2584.2,0.55]
[1724172270185,0.40509947,2584.7,2584.2,2.9595]
[1724172270392,3.8689,2584.8,2584.4,2.4033]
[1724172270553,3.869,2584.7,2584.5,0.55]
[1724172270757,3.99190086,2584.7,2584.5,0.55]
[1724172271457,3.0,2584.6,2584.5,0.55]
[1724172271659,3.12285847,2584.6,2584.5,0.55]
[1724172271960,3.12285847,2584.6,2584.5,3.24863]
[1724172272442,0.12285847,2584.6,2584.5,3.24863]
[1724172273282,6.8687,2584.9,2584.5,3.24863]
[1724172273483,6.8687,2584.9,2584.6,2.3332]
[1724172273696,3.99166702,2584.8,2584.7,0.55]
[1724172273896,6.99166702,2584.8,2584.7,0.55]
[1724172275869,6.99166702,2584.8,2584.7,2.8032]
[1724172276888,3.12289702,2584.8,2584.7,2.8032]
[1724172278739,6.99166702,2584.8,2584.7,2.8032]
[1724172279344,3.12289702,2584.8,2584.7,2.8032]
[1724172279486,0.12289702,2584.8,2584.7,3.08352]
[1724172279691,3.86841,2585.1,2584.8,2.2536]
[1724172279930,3.86841,2585.1,2585.0,2.2536]
[1724172280182,3.86841,2585.1,2585.0,2.8036]
[1724172280932,6.86841,2585.1,2585.0,2.8036]
[1724172282939,6.86841,2585.1,2585.0,21.46424299]
[1724172283278,10.7368,2585.1,2585.0,2.8036]
[1724172284171,6.86839,2585.1,2585.0,2.8036]
[1724172286535,3.0,2585.1,2585.0,2.8036]
[1724172286835,3.0,2585.2,2585.0,2.8036]
[1724172287033,3.0,2585.2,2585.1,2.8348]
[1724172287258,3.0,2585.4,2585.1,2.8348]
[1724172287476,3.0,2585.6,2585.1,1.22188]
[1724172287693,3.86676,2586.2,2585.2,2.2848]
[1724172287694,3.86735,2585.8,2585.2,2.2848]
[1724172287894,3.86735,2585.8,2585.4,2.2848]
[1724172287895,3.0,2585.7,2585.4,2.2848]